[Event "Titled Tuesday Blitz April 26 Late 2022"]
[White "Vasquez Schroeder, Rodrigo"]
[Black "Vovk, Orest"]
[WhiteFideId "3400042"]
[BlackFideId "14113490"]
[WhiteElo "2561"]
[BlackElo "2203"]
[Result "1-0"]
[Round "11"]
[TimeControl "180+1"]
[Date "2022.04.26"]
[WhiteClock "0:01:28"]
[BlackClock "0:00:10"]

1. e4 {[%clk 0:02:56]}  g5 {[%clk 0:02:57]} 2. d4 {[%clk 0:02:54]}  h6 {[%clk 0:02:52]} 3. c3 {[%clk 0:02:51]}  Bg7 {[%clk 0:02:52]} 4. g3 {[%clk 0:02:50]}  d5 {[%clk 0:02:52]} 5. e5 {[%clk 0:02:48]}  c5 {[%clk 0:02:49]} 6. Bg2 {[%clk 0:02:46]}  Nc6 {[%clk 0:02:48]} 7. Be3 {[%clk 0:02:46]}  Bf5 {[%clk 0:02:46]} 8. Ne2 {[%clk 0:02:43]}  e6 {[%clk 0:02:45]} 9. O-O {[%clk 0:02:42]}  Nge7 {[%clk 0:02:42]} 10. h3 {[%clk 0:02:41]}  cxd4 {[%clk 0:02:38]} 11. cxd4 {[%clk 0:02:41]}  Bxb1 {[%clk 0:02:30]} 12. Rxb1 {[%clk 0:02:39]}  Nf5 {[%clk 0:02:31]} 13. Qd2 {[%clk 0:02:35]}  Nxe3 {[%clk 0:02:31]} 14. fxe3 {[%clk 0:02:32]}  O-O {[%clk 0:02:31]} 15. g4 {[%clk 0:02:32]}  f6 {[%clk 0:02:31]} 16. exf6 {[%clk 0:02:32]}  Rxf6 {[%clk 0:02:31]} 17. Ng3 {[%clk 0:02:32]}  Rxf1+ {[%clk 0:02:24]} 18. Rxf1 {[%clk 0:02:31]}  Qa5 {[%clk 0:02:20]} 19. Qd3 {[%clk 0:02:29]}  Rf8 {[%clk 0:02:16]} 20. Rxf8+ {[%clk 0:02:27]}  Kxf8 {[%clk 0:02:14]} 21. Nh5 {[%clk 0:02:27]}  Qe1+ {[%clk 0:02:13]} 22. Kh2 {[%clk 0:02:25]}  Qf2 {[%clk 0:01:54]} 23. a3 {[%clk 0:02:13]}  Kg8 {[%clk 0:01:32]} 24. Kh1 {[%clk 0:02:10]}  Qe1+ {[%clk 0:01:31]} 25. Kh2 {[%clk 0:02:10]}  Qf2 {[%clk 0:01:31]} 26. Qg6 {[%clk 0:02:03]}  Qf7 {[%clk 0:01:31]} 27. Qc2 {[%clk 0:02:03]}  Bf8 {[%clk 0:01:30]} 28. Kg1 {[%clk 0:02:02]}  Bd6 {[%clk 0:01:26]} 29. Qe2 {[%clk 0:02:02]}  Qg6 {[%clk 0:01:18]} 30. Qd1 {[%clk 0:01:58]}  Qf7 {[%clk 0:01:08]} 31. Bf1 {[%clk 0:01:57]}  e5 {[%clk 0:01:04]} 32. dxe5 {[%clk 0:01:57]}  Nxe5 {[%clk 0:01:04]} 33. Bg2 {[%clk 0:01:57]}  Kf8 {[%clk 0:00:55]} 34. Bxd5 {[%clk 0:01:56]}  Qg6 {[%clk 0:00:50]} 35. Qf1+ {[%clk 0:01:52]}  Ke7 {[%clk 0:00:49]} 36. Ng3 {[%clk 0:01:50]}  Kd7 {[%clk 0:00:39]} 37. Nf5 {[%clk 0:01:49]}  Qf6 {[%clk 0:00:37]} 38. Qb5+ {[%clk 0:01:45]}  Kc7 {[%clk 0:00:36]} 39. Qxb7+ {[%clk 0:01:45]}  Kd8 {[%clk 0:00:35]} 40. Qa8+ {[%clk 0:01:45]}  Kd7 {[%clk 0:00:33]} 41. Qxa7+ {[%clk 0:01:45]}  Bc7 {[%clk 0:00:33]} 42. Qa4+ {[%clk 0:01:44]}  Kd8 {[%clk 0:00:31]} 43. Qd4 {[%clk 0:01:42]}  Bb6 {[%clk 0:00:25]} 44. Qd2 {[%clk 0:01:40]}  Kc7 {[%clk 0:00:23]} 45. Kg2 {[%clk 0:01:39]}  h5 {[%clk 0:00:20]} 46. Qc2+ {[%clk 0:01:37]}  Kb8 {[%clk 0:00:19]} 47. gxh5 {[%clk 0:01:37]}  g4 {[%clk 0:00:17]} 48. h4 {[%clk 0:01:34]}  Nf3 {[%clk 0:00:15]} 49. Bxf3 {[%clk 0:01:34]}  gxf3+ {[%clk 0:00:15]} 50. Kxf3 {[%clk 0:01:34]}  Qf7 {[%clk 0:00:13]} 51. Kg4 {[%clk 0:01:32]}  Qg8+ {[%clk 0:00:12]} 52. Kh3 {[%clk 0:01:32]}  Qg1 {[%clk 0:00:10]} 53. Qh2+ {[%clk 0:01:28]} 1-0


[Site "https://www.chess.com"]

[Event "Titled Tuesday Blitz April 26 Late 2022"]
[White "Vujic, Mihailo"]
[Black "Needleman, Alejandro"]
[WhiteFideId "918873"]
[BlackFideId "100730"]
[WhiteElo "2256"]
[BlackElo "2349"]
[Result "1/2-1/2"]
[Round "11"]
[TimeControl "180+1"]
[Date "2022.04.26"]
[WhiteClock "0:00:21"]
[BlackClock "0:00:58"]

1. e4 {[%clk 0:02:58]}  c5 {[%clk 0:03:00]} 2. c3 {[%clk 0:02:58]}  e6 {[%clk 0:03:01]} 3. Nf3 {[%clk 0:02:58]}  d5 {[%clk 0:03:02]} 4. exd5 {[%clk 0:02:57]}  exd5 {[%clk 0:03:02]} 5. d4 {[%clk 0:02:58]}  Nc6 {[%clk 0:03:03]} 6. Bb5 {[%clk 0:02:58]}  Bd6 {[%clk 0:03:03]} 7. O-O {[%clk 0:02:59]}  Ne7 {[%clk 0:03:02]} 8. dxc5 {[%clk 0:02:59]}  Bxc5 {[%clk 0:03:03]} 9. Nbd2 {[%clk 0:02:59]}  O-O {[%clk 0:03:03]} 10. Nb3 {[%clk 0:03:00]}  Bb6 {[%clk 0:03:04]} 11. Bd3 {[%clk 0:03:01]}  Bf5 {[%clk 0:03:00]} 12. Bxf5 {[%clk 0:02:59]}  Nxf5 {[%clk 0:03:00]} 13. Re1 {[%clk 0:02:57]}  d4 {[%clk 0:02:56]} 14. cxd4 {[%clk 0:02:56]}  Nfxd4 {[%clk 0:02:53]} 15. Nbxd4 {[%clk 0:02:55]}  Nxd4 {[%clk 0:02:54]} 16. Nxd4 {[%clk 0:02:55]}  Qxd4 {[%clk 0:02:53]} 17. Qxd4 {[%clk 0:02:41]}  Bxd4 {[%clk 0:02:54]} 18. Be3 {[%clk 0:02:27]}  Bxe3 {[%clk 0:02:28]} 19. Rxe3 {[%clk 0:02:28]}  Rfe8 {[%clk 0:02:27]} 20. Rae1 {[%clk 0:02:25]}  Rxe3 {[%clk 0:02:26]} 21. Rxe3 {[%clk 0:02:26]}  Rc8 {[%clk 0:02:25]} 22. g3 {[%clk 0:02:24]}  Kf8 {[%clk 0:02:22]} 23. Rb3 {[%clk 0:02:20]}  b6 {[%clk 0:02:21]} 24. Ra3 {[%clk 0:02:17]}  a5 {[%clk 0:02:21]} 25. Rb3 {[%clk 0:02:17]}  Rc6 {[%clk 0:02:21]} 26. Kg2 {[%clk 0:02:17]}  Ke7 {[%clk 0:02:17]} 27. Kf3 {[%clk 0:02:18]}  Re6 {[%clk 0:02:09]} 28. Re3 {[%clk 0:02:14]}  Kd6 {[%clk 0:01:55]} 29. Rxe6+ {[%clk 0:02:14]}  Kxe6 {[%clk 0:01:55]} 30. Ke4 {[%clk 0:02:14]}  b5 {[%clk 0:01:44]} 31. Kd4 {[%clk 0:02:12]}  Kd6 {[%clk 0:01:44]} 32. f3 {[%clk 0:02:07]}  h6 {[%clk 0:01:30]} 33. h3 {[%clk 0:01:36]}  g6 {[%clk 0:01:25]} 34. h4 {[%clk 0:01:27]}  f5 {[%clk 0:01:20]} 35. g4 {[%clk 0:01:10]}  fxg4 {[%clk 0:01:15]} 36. fxg4 {[%clk 0:01:11]}  h5 {[%clk 0:01:09]} 37. g5 {[%clk 0:01:06]}  a4 {[%clk 0:01:06]} 38. a3 {[%clk 0:01:04]}  Ke6 {[%clk 0:00:59]} 39. Ke4 {[%clk 0:00:25]}  Kd6 {[%clk 0:00:58]} 40. Kd4 {[%clk 0:00:24]}  Ke6 {[%clk 0:00:58]} 41. Ke4 {[%clk 0:00:21]}  Kd6 {[%clk 0:00:58]} 42. Kd4 {[%clk 0:00:21]} 1/2-1/2


[Site "https://www.chess.com"]

[Event "Titled Tuesday Blitz April 26 Late 2022"]
[White "Xu, Yi"]
[Black "Bluebaum, Matthias"]
[WhiteFideId "8605564"]
[BlackFideId "24651516"]
[WhiteElo "2471"]
[BlackElo "2550"]
[Result "1-0"]
[Round "11"]
[TimeControl "180+1"]
[Date "2022.04.26"]
[WhiteClock "0:00:30"]
[BlackClock "0:00:31"]

1. e4 {[%clk 0:03:00]}  c6 {[%clk 0:02:59]} 2. d4 {[%clk 0:03:01]}  d5 {[%clk 0:03:00]} 3. e5 {[%clk 0:03:01]}  Bf5 {[%clk 0:03:00]} 4. h4 {[%clk 0:03:02]}  h5 {[%clk 0:03:01]} 5. Bd3 {[%clk 0:03:02]}  Bxd3 {[%clk 0:03:01]} 6. Qxd3 {[%clk 0:03:03]}  Qa5+ {[%clk 0:03:01]} 7. Nd2 {[%clk 0:03:04]}  e6 {[%clk 0:03:01]} 8. Ne2 {[%clk 0:03:04]}  Qa6 {[%clk 0:02:57]} 9. c4 {[%clk 0:03:04]}  Ne7 {[%clk 0:02:54]} 10. O-O {[%clk 0:02:51]}  c5 {[%clk 0:02:55]} 11. b3 {[%clk 0:02:29]}  Nf5 {[%clk 0:02:49]} 12. Nf3 {[%clk 0:02:16]}  Nc6 {[%clk 0:02:38]} 13. Bg5 {[%clk 0:02:13]}  dxc4 {[%clk 0:02:29]} 14. bxc4 {[%clk 0:02:13]}  cxd4 {[%clk 0:02:28]} 15. Nexd4 {[%clk 0:02:03]}  Nfxd4 {[%clk 0:02:28]} 16. Nxd4 {[%clk 0:02:04]}  Nxe5 {[%clk 0:02:28]} 17. Qg3 {[%clk 0:01:42]}  Bd6 {[%clk 0:01:47]} 18. Bf4 {[%clk 0:01:38]}  Nxc4 {[%clk 0:01:36]} 19. Qxg7 {[%clk 0:01:35]}  O-O-O {[%clk 0:01:36]} 20. Qxf7 {[%clk 0:01:16]}  Rd7 {[%clk 0:01:18]} 21. Qf6 {[%clk 0:00:43]}  Rf8 {[%clk 0:01:18]} 22. Qh6 {[%clk 0:00:44]}  Rxf4 {[%clk 0:01:16]} 23. Nxe6 {[%clk 0:00:44]}  Rf8 {[%clk 0:00:49]} 24. Rac1 {[%clk 0:00:43]}  Kb8 {[%clk 0:00:32]} 25. Rxc4 {[%clk 0:00:36]}  Qxc4 {[%clk 0:00:33]} 26. Nxf8 {[%clk 0:00:36]}  Qxh4 {[%clk 0:00:28]} 27. Nxd7+ {[%clk 0:00:35]}  Kc7 {[%clk 0:00:28]} 28. g3 {[%clk 0:00:29]}  Bxg3 {[%clk 0:00:27]} 29. Rc1+ {[%clk 0:00:29]}  Kxd7 {[%clk 0:00:26]} 30. Qg7+ {[%clk 0:00:29]}  Ke6 {[%clk 0:00:26]} 31. Qxg3 {[%clk 0:00:29]}  Qxg3+ {[%clk 0:00:26]} 32. fxg3 {[%clk 0:00:29]}  a5 {[%clk 0:00:27]} 33. Rb1 {[%clk 0:00:29]}  b6 {[%clk 0:00:28]} 34. Rxb6+ {[%clk 0:00:30]}  Kd5 {[%clk 0:00:29]} 35. Rb5+ {[%clk 0:00:30]}  Kc4 {[%clk 0:00:30]} 36. Rxa5 {[%clk 0:00:30]}  h4 {[%clk 0:00:31]} 37. gxh4 {[%clk 0:00:30]} 1-0


[Site "https://www.chess.com"]

[Event "Titled Tuesday Blitz April 26 Late 2022"]
[White "Yanayt, Eugene"]
[Black "Jegorovas, Aleksandras"]
[WhiteFideId "2020165"]
[BlackFideId "12801950"]
[WhiteElo "2046"]
[BlackElo "2247"]
[Result "0-1"]
[Round "11"]
[TimeControl "180+1"]
[Date "2022.04.26"]
[WhiteClock "0:00:55"]
[BlackClock "0:00:45"]

1. e4 {[%clk 0:03:00]}  e6 {[%clk 0:02:56]} 2. f4 {[%clk 0:02:59]}  d5 {[%clk 0:02:56]} 3. Nc3 {[%clk 0:02:59]}  Nf6 {[%clk 0:02:55]} 4. d3 {[%clk 0:02:56]}  c5 {[%clk 0:02:53]} 5. g3 {[%clk 0:02:55]}  Nc6 {[%clk 0:02:53]} 6. Bg2 {[%clk 0:02:55]}  Be7 {[%clk 0:02:53]} 7. Nf3 {[%clk 0:02:54]}  O-O {[%clk 0:02:53]} 8. O-O {[%clk 0:02:54]}  Rb8 {[%clk 0:02:50]} 9. a4 {[%clk 0:02:53]}  a6 {[%clk 0:02:50]} 10. a5 {[%clk 0:02:53]}  b5 {[%clk 0:02:46]} 11. axb6 {[%clk 0:02:52]}  Qxb6 {[%clk 0:02:46]} 12. Kh1 {[%clk 0:02:50]}  Rd8 {[%clk 0:02:27]} 13. e5 {[%clk 0:02:48]}  Nd7 {[%clk 0:02:27]} 14. g4 {[%clk 0:02:44]}  Nd4 {[%clk 0:02:17]} 15. b3 {[%clk 0:02:29]}  Nxf3 {[%clk 0:02:11]} 16. Qxf3 {[%clk 0:02:26]}  Bb7 {[%clk 0:02:10]} 17. Qg3 {[%clk 0:02:22]}  c4 {[%clk 0:02:05]} 18. bxc4 {[%clk 0:02:16]}  dxc4 {[%clk 0:02:02]} 19. Ne4 {[%clk 0:02:08]}  Nc5 {[%clk 0:01:49]} 20. Nxc5 {[%clk 0:01:50]}  Bxc5 {[%clk 0:01:46]} 21. dxc4 {[%clk 0:01:24]}  Rd4 {[%clk 0:00:53]} 22. Be3 {[%clk 0:00:59]}  Rxc4 {[%clk 0:00:52]} 23. Rab1 {[%clk 0:00:57]}  Bxg2+ {[%clk 0:00:47]} 24. Qxg2 {[%clk 0:00:56]}  Qxb1 {[%clk 0:00:46]} 25. Rxb1 {[%clk 0:00:55]}  Rxb1+ {[%clk 0:00:45]} 0-1


[Site "https://www.chess.com"]